[Event "Titled Tuesday Blitz January 03 Early 2023"]
[White "Zierk, Steven"]
[Black "Martin Duque, Jesus"]
[WhiteFideId "2034255"]
[BlackFideId "2208954"]
[WhiteElo "2488"]
[BlackElo "2386"]
[Result "1-0"]
[Round "02"]
[TimeControl "180+2"]
[Date "2023.01.03"]
[WhiteClock "0:00:22"]
[BlackClock "0:00:40"]

1. e4 {[%clk 0:03:00]}  c5 {[%clk 0:02:57]} 2. Nf3 {[%clk 0:02:59]}  b6 {[%clk 0:02:57]} 3. d4 {[%clk 0:02:58]}  cxd4 {[%clk 0:02:58]} 4. Nxd4 {[%clk 0:02:59]}  Bb7 {[%clk 0:02:59]} 5. Nc3 {[%clk 0:02:59]}  a6 {[%clk 0:02:59]} 6. a4 {[%clk 0:02:56]}  e6 {[%clk 0:02:58]} 7. Be3 {[%clk 0:02:52]}  Bb4 {[%clk 0:02:58]} 8. Qg4 {[%clk 0:02:50]}  Nf6 {[%clk 0:02:57]} 9. Qxg7 {[%clk 0:02:49]}  Rg8 {[%clk 0:02:58]} 10. Qh6 {[%clk 0:02:49]}  Rg6 {[%clk 0:02:45]} 11. Qh3 {[%clk 0:02:39]}  Nxe4 {[%clk 0:02:45]} 12. O-O-O {[%clk 0:02:26]}  Bxc3 {[%clk 0:02:29]} 13. bxc3 {[%clk 0:02:24]}  Qe7 {[%clk 0:02:29]} 14. Kb2 {[%clk 0:02:22]}  Nc6 {[%clk 0:02:23]} 15. Qxh7 {[%clk 0:02:17]}  O-O-O {[%clk 0:02:22]} 16. Nb3 {[%clk 0:02:13]}  Qf6 {[%clk 0:02:17]} 17. Qh3 {[%clk 0:02:00]}  Qxc3+ {[%clk 0:02:15]} 18. Kb1 {[%clk 0:02:00]}  Nb4 {[%clk 0:02:10]} 19. Bd3 {[%clk 0:01:58]}  Rh8 {[%clk 0:01:58]} 20. Qf3 {[%clk 0:01:44]}  Nxd3 {[%clk 0:01:55]} 21. Rxd3 {[%clk 0:01:42]}  Qxd3 {[%clk 0:01:55]} 22. cxd3 {[%clk 0:01:40]}  Nc3+ {[%clk 0:01:54]} 23. Kb2 {[%clk 0:01:35]}  Nxa4+ {[%clk 0:01:52]} 24. Ka3 {[%clk 0:01:34]}  Bxf3 {[%clk 0:01:52]} 25. gxf3 {[%clk 0:01:33]}  b5 {[%clk 0:01:45]} 26. Kb4 {[%clk 0:01:33]}  Rh4+ {[%clk 0:01:44]} 27. Ka5 {[%clk 0:01:33]}  Kb7 {[%clk 0:01:42]} 28. Rc1 {[%clk 0:01:28]}  e5 {[%clk 0:01:40]} 29. d4 {[%clk 0:01:25]}  exd4 {[%clk 0:01:34]} 30. Nxd4 {[%clk 0:01:23]}  Nb6 {[%clk 0:01:26]} 31. Kb4 {[%clk 0:01:23]}  Nd5+ {[%clk 0:01:23]} 32. Kb3 {[%clk 0:01:22]}  Nxe3 {[%clk 0:01:21]} 33. fxe3 {[%clk 0:01:23]}  Rxh2 {[%clk 0:01:20]} 34. Rd1 {[%clk 0:01:18]}  Kb6 {[%clk 0:01:10]} 35. Nf5 {[%clk 0:01:16]}  a5 {[%clk 0:01:09]} 36. Rxd7 {[%clk 0:01:14]}  a4+ {[%clk 0:01:08]} 37. Ka3 {[%clk 0:01:14]}  Rc6 {[%clk 0:01:04]} 38. Nd4 {[%clk 0:01:10]}  Rc3+ {[%clk 0:01:04]} 39. Kb4 {[%clk 0:01:10]}  Rc4+ {[%clk 0:01:04]} 40. Ka3 {[%clk 0:01:10]}  Rh1 {[%clk 0:00:44]} 41. Rxf7 {[%clk 0:00:59]}  Ra1+ {[%clk 0:00:41]} 42. Kb2 {[%clk 0:00:59]}  Rcc1 {[%clk 0:00:41]} 43. Rf6+ {[%clk 0:00:52]}  Kc5 {[%clk 0:00:41]} 44. Rc6+ {[%clk 0:00:22]}  Kb4 {[%clk 0:00:42]} 45. Rxc1 {[%clk 0:00:23]}  Ra3 {[%clk 0:00:40]} 46. Nc6# {[%clk 0:00:22]} 1-0


[Site "https://www.chess.com"]

[Event "Titled Tuesday Blitz January 03 Early 2023"]
[White "Arpita, Mukherjee"]
[Black "Ibarra Jerez, Jose Carlos"]
[WhiteFideId "5056403"]
[BlackFideId "2226332"]
[WhiteElo "2203"]
[BlackElo "2563"]
[Result "0-1"]
[Round "02"]
[TimeControl "180+2"]
[Date "2023.01.03"]
[WhiteClock "0:00:03"]
[BlackClock "0:00:17"]

1. e4 {[%clk 0:02:59]}  c5 {[%clk 0:02:58]} 2. Nf3 {[%clk 0:02:58]}  Nc6 {[%clk 0:02:57]} 3. Bb5 {[%clk 0:02:57]}  e6 {[%clk 0:02:57]} 4. O-O {[%clk 0:02:49]}  Nge7 {[%clk 0:02:55]} 5. d4 {[%clk 0:02:47]}  cxd4 {[%clk 0:02:55]} 6. Nxd4 {[%clk 0:02:41]}  Ng6 {[%clk 0:02:55]} 7. Bxc6 {[%clk 0:02:36]}  bxc6 {[%clk 0:02:53]} 8. c4 {[%clk 0:02:35]}  c5 {[%clk 0:02:44]} 9. Ne2 {[%clk 0:02:34]}  Bb7 {[%clk 0:02:43]} 10. Nbc3 {[%clk 0:02:34]}  Be7 {[%clk 0:02:43]} 11. f4 {[%clk 0:02:34]}  O-O {[%clk 0:02:43]} 12. Be3 {[%clk 0:02:31]}  f5 {[%clk 0:02:42]} 13. e5 {[%clk 0:02:28]}  a6 {[%clk 0:02:30]} 14. g3 {[%clk 0:02:02]}  Qc7 {[%clk 0:02:27]} 15. Kf2 {[%clk 0:01:50]}  d6 {[%clk 0:02:23]} 16. exd6 {[%clk 0:01:43]}  Bxd6 {[%clk 0:02:23]} 17. Ng1 {[%clk 0:01:37]}  e5 {[%clk 0:02:17]} 18. Nd5 {[%clk 0:01:35]}  Qf7 {[%clk 0:02:15]} 19. Nf3 {[%clk 0:01:22]}  exf4 {[%clk 0:02:13]} 20. gxf4 {[%clk 0:01:12]}  Bxd5 {[%clk 0:02:04]} 21. Qxd5 {[%clk 0:01:12]}  Qxd5 {[%clk 0:02:04]} 22. cxd5 {[%clk 0:01:13]}  Nxf4 {[%clk 0:02:05]} 23. Bxf4 {[%clk 0:01:05]}  Bxf4 {[%clk 0:02:05]} 24. Rfe1 {[%clk 0:01:05]}  Rad8 {[%clk 0:02:00]} 25. Rad1 {[%clk 0:01:05]}  h6 {[%clk 0:01:53]} 26. Re6 {[%clk 0:01:04]}  Rd6 {[%clk 0:01:46]} 27. Rxd6 {[%clk 0:00:54]}  Bxd6 {[%clk 0:01:45]} 28. h4 {[%clk 0:00:55]}  Re8 {[%clk 0:01:42]} 29. Nd2 {[%clk 0:00:54]}  Be5 {[%clk 0:01:39]} 30. Nb3 {[%clk 0:00:48]}  c4 {[%clk 0:01:37]} 31. Na5 {[%clk 0:00:46]}  Bxb2 {[%clk 0:01:17]} 32. Nxc4 {[%clk 0:00:45]}  Bf6 {[%clk 0:01:17]} 33. h5 {[%clk 0:00:41]}  Re4 {[%clk 0:01:12]} 34. Nd6 {[%clk 0:00:30]}  Ra4 {[%clk 0:01:12]} 35. Rd2 {[%clk 0:00:21]}  Be5 {[%clk 0:01:02]} 36. Nb7 {[%clk 0:00:13]}  Rb4 {[%clk 0:00:58]} 37. Nd8 {[%clk 0:00:11]}  Rh4 {[%clk 0:00:44]} 38. Nc6 {[%clk 0:00:10]}  Bd6 {[%clk 0:00:40]} 39. Re2 {[%clk 0:00:08]}  Rh2+ {[%clk 0:00:30]} 40. Kf3 {[%clk 0:00:07]}  Rxe2 {[%clk 0:00:28]} 41. Kxe2 {[%clk 0:00:08]}  Kf7 {[%clk 0:00:28]} 42. Kf3 {[%clk 0:00:08]}  Kf6 {[%clk 0:00:29]} 43. a4 {[%clk 0:00:08]}  Kg5 {[%clk 0:00:24]} 44. Nd4 {[%clk 0:00:06]}  Be5 {[%clk 0:00:20]} 45. Nc6 {[%clk 0:00:06]}  Bh2 {[%clk 0:00:19]} 46. Nd4 {[%clk 0:00:05]}  Kxh5 {[%clk 0:00:19]} 47. Nxf5 {[%clk 0:00:05]}  Kg6 {[%clk 0:00:19]} 48. Nd4 {[%clk 0:00:05]}  Kf6 {[%clk 0:00:18]} 49. Ne6 {[%clk 0:00:05]}  Bd6 {[%clk 0:00:18]} 50. Nd4 {[%clk 0:00:03]}  Ke5 {[%clk 0:00:17]} 51. Ke3 {[%clk 0:00:03]}  Bc5 {[%clk 0:00:17]} 0-1


[Site "https://www.chess.com"]

[Event "Titled Tuesday Blitz January 03 Early 2023"]
[White "Tactrics"]
[Black "Kalajzic, Ivan"]
[BlackFideId "14506378"]
[WhiteElo "2846"]
[BlackElo "2062"]
[Result "1-0"]
[Round "02"]
[TimeControl "180+2"]
[Date "2023.01.03"]
[WhiteClock "0:00:40"]
[BlackClock "0:00:11"]

1. e4 {[%clk 0:03:00]}  c6 {[%clk 0:02:58]} 2. Bc4 {[%clk 0:02:59]}  d5 {[%clk 0:02:57]} 3. Bb3 {[%clk 0:03:00]}  Nf6 {[%clk 0:02:56]} 4. e5 {[%clk 0:02:58]}  Nfd7 {[%clk 0:02:55]} 5. d4 {[%clk 0:02:58]}  e6 {[%clk 0:02:55]} 6. f4 {[%clk 0:02:58]}  f5 {[%clk 0:02:54]} 7. c3 {[%clk 0:02:57]}  c5 {[%clk 0:02:48]} 8. Be3 {[%clk 0:02:57]}  Nc6 {[%clk 0:02:48]} 9. Nd2 {[%clk 0:02:57]}  Qb6 {[%clk 0:02:46]} 10. Ne2 {[%clk 0:02:53]}  c4 {[%clk 0:02:44]} 11. Bc2 {[%clk 0:02:48]}  Qxb2 {[%clk 0:02:44]} 12. a4 {[%clk 0:02:48]}  Qb6 {[%clk 0:02:44]} 13. g4 {[%clk 0:02:45]}  g6 {[%clk 0:02:41]} 14. gxf5 {[%clk 0:02:41]}  exf5 {[%clk 0:02:40]} 15. h4 {[%clk 0:02:37]}  Bg7 {[%clk 0:02:26]} 16. h5 {[%clk 0:02:36]}  Nf8 {[%clk 0:02:27]} 17. h6 {[%clk 0:02:35]}  Qc7 {[%clk 0:02:23]} 18. hxg7 {[%clk 0:02:34]}  Qxg7 {[%clk 0:02:24]} 19. Nf3 {[%clk 0:02:29]}  Ne6 {[%clk 0:02:22]} 20. Ng3 {[%clk 0:02:25]}  Bd7 {[%clk 0:02:15]} 21. Rb1 {[%clk 0:02:24]}  b6 {[%clk 0:02:15]} 22. Qe2 {[%clk 0:02:24]}  Na5 {[%clk 0:02:11]} 23. Qg2 {[%clk 0:02:24]}  O-O-O {[%clk 0:02:06]} 24. Ng5 {[%clk 0:02:21]}  Nxg5 {[%clk 0:02:05]} 25. fxg5 {[%clk 0:02:22]}  Be6 {[%clk 0:02:04]} 26. Ne2 {[%clk 0:02:22]}  Rd7 {[%clk 0:02:00]} 27. Nf4 {[%clk 0:02:22]}  Re8 {[%clk 0:01:54]} 28. Rh6 {[%clk 0:02:18]}  Qe7 {[%clk 0:01:54]} 29. Qh2 {[%clk 0:02:15]}  Qa3 {[%clk 0:01:51]} 30. Bd2 {[%clk 0:02:07]}  Bg8 {[%clk 0:01:35]} 31. Qg3 {[%clk 0:02:00]}  Nb3 {[%clk 0:01:33]} 32. Bxb3 {[%clk 0:01:58]}  cxb3 {[%clk 0:01:34]} 33. Qf3 {[%clk 0:01:53]}  Qxa4 {[%clk 0:01:25]} 34. Qd1 {[%clk 0:01:53]}  Rde7 {[%clk 0:01:10]} 35. Qxb3 {[%clk 0:01:51]}  Rxe5+ {[%clk 0:01:10]} 36. dxe5 {[%clk 0:01:50]}  Rxe5+ {[%clk 0:01:11]} 37. Kf2 {[%clk 0:01:47]}  Qe8 {[%clk 0:01:02]} 38. Rh3 {[%clk 0:01:30]}  d4 {[%clk 0:01:01]} 39. Qc2 {[%clk 0:01:16]}  Bc4 {[%clk 0:00:58]} 40. cxd4 {[%clk 0:01:09]}  Re2+ {[%clk 0:00:54]} 41. Nxe2 {[%clk 0:01:02]}  Qxe2+ {[%clk 0:00:55]} 42. Kg1 {[%clk 0:00:57]}  Kb7 {[%clk 0:00:30]} 43. Rg3 {[%clk 0:00:52]}  f4 {[%clk 0:00:27]} 44. Rg2 {[%clk 0:00:45]}  Qe6 {[%clk 0:00:21]} 45. Bxf4 {[%clk 0:00:42]}  Bd5 {[%clk 0:00:11]} 46. Qc7+ {[%clk 0:00:41]}  Ka8 {[%clk 0:00:11]} 47. Qb8# {[%clk 0:00:40]} 1-0


[Site "https://www.chess.com"]

[Event "Titled Tuesday Blitz January 03 Early 2023"]
[White "Samunenkov, Ihor"]
[Black "Estrada Nieto, Julian"]
[WhiteFideId "14187086"]
[BlackFideId "5101018"]
[WhiteElo "2501"]
[BlackElo "2215"]
[Result "0-1"]
[Round "02"]
[TimeControl "180+2"]
[Date "2023.01.03"]
[WhiteClock "0:00:02"]
[BlackClock "0:00:26"]

1. e4 {[%clk 0:03:00]}  e5 {[%clk 0:02:59]} 2. Nf3 {[%clk 0:03:00]}  Nc6 {[%clk 0:03:00]} 3. Bb5 {[%clk 0:03:01]}  a6 {[%clk 0:03:00]} 4. Ba4 {[%clk 0:03:01]}  Nf6 {[%clk 0:03:01]} 5. O-O {[%clk 0:03:02]}  Be7 {[%clk 0:03:01]} 6. Re1 {[%clk 0:03:02]}  b5 {[%clk 0:03:01]} 7. Bb3 {[%clk 0:03:03]}  d6 {[%clk 0:02:59]} 8. a4 {[%clk 0:03:03]}  b4 {[%clk 0:02:59]} 9. d4 {[%clk 0:03:00]}  Bg4 {[%clk 0:02:53]} 10. dxe5 {[%clk 0:02:55]}  Nxe5 {[%clk 0:02:51]} 11. Nbd2 {[%clk 0:02:46]}  O-O {[%clk 0:02:39]} 12. h3 {[%clk 0:02:38]}  Bh5 {[%clk 0:02:31]} 13. g4 {[%clk 0:02:36]}  Bg6 {[%clk 0:02:22]} 14. Nd4 {[%clk 0:02:25]}  c5 {[%clk 0:02:14]} 15. Nf5 {[%clk 0:02:13]}  Bxf5 {[%clk 0:02:13]} 16. gxf5 {[%clk 0:01:46]}  Nfd7 {[%clk 0:01:54]} 17. f4 {[%clk 0:01:37]}  Nc6 {[%clk 0:01:54]} 18. Nf3 {[%clk 0:01:29]}  Nb6 {[%clk 0:01:50]} 19. Bd5 {[%clk 0:01:06]}  Nxd5 {[%clk 0:01:42]} 20. Qxd5 {[%clk 0:01:07]}  Qc7 {[%clk 0:01:38]} 21. e5 {[%clk 0:00:49]}  Rad8 {[%clk 0:01:23]} 22. e6 {[%clk 0:00:35]}  Bf6 {[%clk 0:01:22]} 23. Ng5 {[%clk 0:00:28]}  Bxg5 {[%clk 0:01:07]} 24. fxg5 {[%clk 0:00:29]}  Ne7 {[%clk 0:01:04]} 25. exf7+ {[%clk 0:00:14]}  Rxf7 {[%clk 0:01:04]} 26. Rxe7 {[%clk 0:00:07]}  Qxe7 {[%clk 0:01:01]} 27. Bf4 {[%clk 0:00:02]}  Kh8 {[%clk 0:00:53]} 28. Bg3 {[%clk 0:00:02]}  Qxg5 {[%clk 0:00:44]} 29. Kh2 {[%clk 0:00:02]}  Qxf5 {[%clk 0:00:43]} 30. Qc6 {[%clk 0:00:02]}  Qxc2+ {[%clk 0:00:41]} 31. Kg1 {[%clk 0:00:03]}  Qxb2 {[%clk 0:00:38]} 32. Re1 {[%clk 0:00:03]}  Rff8 {[%clk 0:00:26]} 33. Bxd6 {[%clk 0:00:02]}  Qd4+ {[%clk 0:00:26]} 0-1


[Site "https://www.chess.com"]

[Event "Titled Tuesday Blitz January 03 Early 2023"]
[White "Santos Ruiz, Miguel"]
[Black "Manukian, Artak"]
[WhiteFideId "22291482"]
[BlackFideId "13301373"]
[WhiteElo "2590"]
[BlackElo "2196"]
[Result "1-0"]
[Round "02"]
[TimeControl "180+2"]
[Date "2023.01.03"]
[WhiteClock "0:00:13"]
[BlackClock "0:00:15"]

1. c4 {[%clk 0:03:00]}  g6 {[%clk 0:02:57]} 2. d4 {[%clk 0:03:00]}  Bg7 {[%clk 0:02:57]} 3. Nc3 {[%clk 0:03:00]}  d6 {[%clk 0:02:58]} 4. e4 {[%clk 0:03:00]}  Nf6 {[%clk 0:02:58]} 5. Be2 {[%clk 0:02:59]}  O-O {[%clk 0:02:59]} 6. Be3 {[%clk 0:02:58]}  e5 {[%clk 0:02:57]} 7. d5 {[%clk 0:02:58]}  c5 {[%clk 0:02:57]} 8. g4 {[%clk 0:02:57]}  Na6 {[%clk 0:02:55]} 9. h4 {[%clk 0:02:49]}  Nc7 {[%clk 0:02:52]} 10. h5 {[%clk 0:02:45]}  a6 {[%clk 0:02:48]} 11. a4 {[%clk 0:02:45]}  Rb8 {[%clk 0:02:48]} 12. hxg6 {[%clk 0:02:31]}  hxg6 {[%clk 0:02:43]} 13. f3 {[%clk 0:02:21]}  b5 {[%clk 0:02:30]} 14. axb5 {[%clk 0:02:05]}  axb5 {[%clk 0:02:31]} 15. cxb5 {[%clk 0:02:05]}  Bd7 {[%clk 0:02:30]} 16. Qd2 {[%clk 0:02:05]}  Nxb5 {[%clk 0:02:27]} 17. Bh6 {[%clk 0:01:54]}  Bh8 {[%clk 0:02:21]} 18. Bxb5 {[%clk 0:01:49]}  Bxb5 {[%clk 0:02:20]} 19. Bxf8 {[%clk 0:01:28]}  Qxf8 {[%clk 0:02:20]} 20. Nge2 {[%clk 0:01:11]}  Bxe2 {[%clk 0:02:19]} 21. Qxe2 {[%clk 0:01:07]}  Ra8 {[%clk 0:02:06]} 22. Kf2 {[%clk 0:00:50]}  Bg7 {[%clk 0:02:01]} 23. Rxa8 {[%clk 0:00:43]}  Qxa8 {[%clk 0:02:02]} 24. Kg2 {[%clk 0:00:43]}  Nh7 {[%clk 0:01:36]} 25. Qb5 {[%clk 0:00:33]}  Bf8 {[%clk 0:01:30]} 26. Nd1 {[%clk 0:00:22]}  Nf6 {[%clk 0:01:04]} 27. Nf2 {[%clk 0:00:21]}  Qa7 {[%clk 0:00:54]} 28. Rd1 {[%clk 0:00:20]}  Bh6 {[%clk 0:00:48]} 29. Rd3 {[%clk 0:00:19]}  Qa1 {[%clk 0:00:43]} 30. Ra3 {[%clk 0:00:18]}  Qc1 {[%clk 0:00:38]} 31. Ra8+ {[%clk 0:00:18]}  Kh7 {[%clk 0:00:37]} 32. Qb8 {[%clk 0:00:18]}  Bg7 {[%clk 0:00:36]} 33. Qxd6 {[%clk 0:00:18]}  Qxb2 {[%clk 0:00:35]} 34. Qxc5 {[%clk 0:00:17]}  Kh6 {[%clk 0:00:29]} 35. Ra7 {[%clk 0:00:18]}  Kg5 {[%clk 0:00:21]} 36. Qe3+ {[%clk 0:00:15]}  Kh4 {[%clk 0:00:21]} 37. Rxf7 {[%clk 0:00:15]}  Ne8 {[%clk 0:00:20]} 38. d6 {[%clk 0:00:14]}  Qb3 {[%clk 0:00:15]} 39. Qxb3 {[%clk 0:00:13]} 1-0


[Site "https://www.chess.com"]

[Event "Titled Tuesday Blitz January 03 Early 2023"]
[White "Najdin, Danil"]
[Black "Murzin, Volodar"]
[WhiteFideId "4172426"]
[BlackFideId "44155573"]
[WhiteElo "2235"]
[BlackElo "2604"]
[Result "1-0"]
[Round "02"]
[TimeControl "180+2"]
[Date "2023.01.03"]
[WhiteClock "0:00:06"]
[BlackClock "0:00:21"]

1. e4 {[%clk 0:03:00]}  c6 {[%clk 0:02:14]} 2. d4 {[%clk 0:02:30]}  d5 {[%clk 0:02:13]} 3. exd5 {[%clk 0:02:31]}  cxd5 {[%clk 0:02:14]} 4. Bd3 {[%clk 0:02:32]}  Nc6 {[%clk 0:02:14]} 5. c3 {[%clk 0:02:32]}  g6 {[%clk 0:02:14]} 6. Bf4 {[%clk 0:02:31]}  Bf5 {[%clk 0:02:14]} 7. Nf3 {[%clk 0:02:32]}  Bxd3 {[%clk 0:02:12]} 8. Qxd3 {[%clk 0:02:32]}  Bg7 {[%clk 0:02:12]} 9. O-O {[%clk 0:02:32]}  Nf6 {[%clk 0:02:12]} 10. Nbd2 {[%clk 0:02:32]}  O-O {[%clk 0:02:13]} 11. Rfe1 {[%clk 0:02:32]}  Rc8 {[%clk 0:02:05]} 12. h3 {[%clk 0:02:25]}  e6 {[%clk 0:02:03]} 13. Ne5 {[%clk 0:02:21]}  a6 {[%clk 0:02:00]} 14. Qe3 {[%clk 0:01:43]}  Nd7 {[%clk 0:01:52]} 15. Nd3 {[%clk 0:01:33]}  Re8 {[%clk 0:01:45]} 16. Bh6 {[%clk 0:01:28]}  Bh8 {[%clk 0:01:44]} 17. Nf3 {[%clk 0:01:27]}  Nb6 {[%clk 0:01:41]} 18. h4 {[%clk 0:01:19]}  Nc4 {[%clk 0:01:40]} 19. Qe2 {[%clk 0:01:20]}  Nd6 {[%clk 0:01:31]} 20. g3 {[%clk 0:01:07]}  Ne4 {[%clk 0:01:31]} 21. Kg2 {[%clk 0:01:08]}  Ne7 {[%clk 0:01:29]} 22. Bg5 {[%clk 0:01:05]}  h5 {[%clk 0:01:21]} 23. Ng1 {[%clk 0:00:59]}  Nxg5 {[%clk 0:01:08]} 24. hxg5 {[%clk 0:00:59]}  Nf5 {[%clk 0:01:08]} 25. Nh3 {[%clk 0:00:59]}  Bg7 {[%clk 0:01:06]} 26. f3 {[%clk 0:00:50]}  Nd6 {[%clk 0:01:06]} 27. Ne5 {[%clk 0:00:47]}  b5 {[%clk 0:01:01]} 28. a3 {[%clk 0:00:46]}  a5 {[%clk 0:01:00]} 29. Nd3 {[%clk 0:00:44]}  Qc7 {[%clk 0:00:55]} 30. Nc5 {[%clk 0:00:41]}  Qc6 {[%clk 0:00:42]} 31. b4 {[%clk 0:00:39]}  Ra8 {[%clk 0:00:38]} 32. Nf4 {[%clk 0:00:39]}  Qc7 {[%clk 0:00:36]} 33. Nfd3 {[%clk 0:00:37]}  Nf5 {[%clk 0:00:32]} 34. Ne5 {[%clk 0:00:35]}  Reb8 {[%clk 0:00:31]} 35. Ned7 {[%clk 0:00:33]}  Rd8 {[%clk 0:00:28]} 36. Qxb5 {[%clk 0:00:33]}  Nd6 {[%clk 0:00:29]} 37. Qb6 {[%clk 0:00:11]}  Rxd7 {[%clk 0:00:28]} 38. Nxd7 {[%clk 0:00:12]}  Qxd7 {[%clk 0:00:29]} 39. bxa5 {[%clk 0:00:12]}  Nc4 {[%clk 0:00:28]} 40. Qb3 {[%clk 0:00:09]}  Rxa5 {[%clk 0:00:29]} 41. a4 {[%clk 0:00:10]}  Bf8 {[%clk 0:00:27]} 42. Ra2 {[%clk 0:00:08]}  Qd8 {[%clk 0:00:21]} 43. f4 {[%clk 0:00:08]}  Ra7 {[%clk 0:00:21]} 44. Rb1 {[%clk 0:00:08]}  Bd6 {[%clk 0:00:21]} 45. a5 {[%clk 0:00:06]} 1-0


[Site "https://www.chess.com"]

[Event "Titled Tuesday Blitz January 03 Early 2023"]
[White "Abdilkhair, Abilmansur"]
[Black "Yeritsyan, Hayk"]
[WhiteFideId "13716417"]
[BlackFideId "13307320"]
[WhiteElo "2268"]
[BlackElo "2241"]
[Result "0-1"]
[Round "02"]
[TimeControl "180+2"]
[Date "2023.01.03"]
[WhiteClock "0:00:02"]
[BlackClock "0:00:21"]

1. d4 {[%clk 0:03:00]}  Nf6 {[%clk 0:02:59]} 2. Nf3 {[%clk 0:03:00]}  e6 {[%clk 0:02:59]} 3. c4 {[%clk 0:02:59]}  b6 {[%clk 0:02:52]} 4. g3 {[%clk 0:03:00]}  Ba6 {[%clk 0:02:50]} 5. Bg2 {[%clk 0:03:00]}  Bb4+ {[%clk 0:02:48]} 6. Bd2 {[%clk 0:02:55]}  Qe7 {[%clk 0:02:47]} 7. Qa4 {[%clk 0:02:44]}  Bxd2+ {[%clk 0:02:40]} 8. Nbxd2 {[%clk 0:02:45]}  Bb7 {[%clk 0:02:40]} 9. O-O {[%clk 0:02:44]}  O-O {[%clk 0:02:37]} 10. Rac1 {[%clk 0:02:41]}  c5 {[%clk 0:02:32]} 11. Qa3 {[%clk 0:02:38]}  d6 {[%clk 0:02:22]} 12. Rfd1 {[%clk 0:02:27]}  a6 {[%clk 0:01:57]} 13. Nf1 {[%clk 0:02:12]}  Rd8 {[%clk 0:01:37]} 14. Ne3 {[%clk 0:02:10]}  Nc6 {[%clk 0:01:34]} 15. d5 {[%clk 0:02:06]}  exd5 {[%clk 0:01:35]} 16. cxd5 {[%clk 0:02:07]}  Ne5 {[%clk 0:01:34]} 17. Nf5 {[%clk 0:02:02]}  Nxf3+ {[%clk 0:01:30]} 18. Qxf3 {[%clk 0:02:00]}  Qd7 {[%clk 0:01:27]} 19. e4 {[%clk 0:01:51]}  Re8 {[%clk 0:01:26]} 20. Qf4 {[%clk 0:01:50]}  Re5 {[%clk 0:01:21]} 21. Bh3 {[%clk 0:01:32]}  Qd8 {[%clk 0:01:16]} 22. f3 {[%clk 0:01:29]}  g6 {[%clk 0:01:11]} 23. Ne3 {[%clk 0:01:14]}  b5 {[%clk 0:01:08]} 24. Rxc5 {[%clk 0:01:07]}  Nh5 {[%clk 0:01:08]} 25. Qh6 {[%clk 0:00:52]}  dxc5 {[%clk 0:01:04]} 26. Ng4 {[%clk 0:00:44]}  Re8 {[%clk 0:00:50]} 27. e5 {[%clk 0:00:32]}  Bc8 {[%clk 0:00:46]} 28. e6 {[%clk 0:00:20]}  fxe6 {[%clk 0:00:44]} 29. Ne5 {[%clk 0:00:18]}  exd5 {[%clk 0:00:41]} 30. Nxg6 {[%clk 0:00:07]}  hxg6 {[%clk 0:00:37]} 31. Qxg6+ {[%clk 0:00:08]}  Ng7 {[%clk 0:00:38]} 32. Bg2 {[%clk 0:00:07]}  Bf5 {[%clk 0:00:35]} 33. Qc6 {[%clk 0:00:07]}  Rc8 {[%clk 0:00:34]} 34. Qxa6 {[%clk 0:00:07]}  d4 {[%clk 0:00:34]} 35. Qxb5 {[%clk 0:00:07]}  d3 {[%clk 0:00:34]} 36. f4 {[%clk 0:00:07]}  d2 {[%clk 0:00:33]} 37. Qc4+ {[%clk 0:00:08]}  Kh8 {[%clk 0:00:31]} 38. Qc3 {[%clk 0:00:08]}  Re1+ {[%clk 0:00:23]} 39. Rxe1 {[%clk 0:00:08]}  Qd4+ {[%clk 0:00:24]} 40. Re3 {[%clk 0:00:03]}  d1=Q+ {[%clk 0:00:22]} 41. Kf2 {[%clk 0:00:04]}  Q1d2+ {[%clk 0:00:20]} 42. Qxd2 {[%clk 0:00:02]}  Qxd2+ {[%clk 0:00:21]} 43. Re2 {[%clk 0:00:03]}  Qd4+ {[%clk 0:00:21]} 44. Ke1 {[%clk 0:00:02]}  Bg4 {[%clk 0:00:21]} 0-1


[Site "https://www.chess.com"]

[Event "Titled Tuesday Blitz January 03 Early 2023"]
[White "Novikova, Galina"]
[Black "Korchmar, Vasiliy"]
[WhiteFideId "4157095"]
[BlackFideId "24131750"]
[WhiteElo "2073"]
[BlackElo "2438"]
[Result "0-1"]
[Round "02"]
[TimeControl "180+2"]
[Date "2023.01.03"]
[WhiteClock "0:00:27"]
[BlackClock "0:00:37"]

1. d4 {[%clk 0:03:00]}  Nf6 {[%clk 0:02:55]} 2. Nc3 {[%clk 0:03:01]}  g6 {[%clk 0:02:47]} 3. Bf4 {[%clk 0:02:59]}  Bg7 {[%clk 0:02:45]} 4. e4 {[%clk 0:02:54]}  O-O {[%clk 0:02:44]} 5. f3 {[%clk 0:02:52]}  c5 {[%clk 0:02:44]} 6. Nge2 {[%clk 0:02:43]}  b5 {[%clk 0:02:40]} 7. Qd2 {[%clk 0:02:40]}  b4 {[%clk 0:02:39]} 8. Nd1 {[%clk 0:02:37]}  d6 {[%clk 0:02:29]} 9. Bh6 {[%clk 0:02:29]}  Bxh6 {[%clk 0:02:20]} 10. Qxh6 {[%clk 0:02:30]}  Nc6 {[%clk 0:02:20]} 11. h4 {[%clk 0:02:25]}  Ba6 {[%clk 0:02:10]} 12. h5 {[%clk 0:01:50]}  Bxe2 {[%clk 0:02:09]} 13. Bxe2 {[%clk 0:01:45]}  Nxd4 {[%clk 0:02:08]} 14. Ne3 {[%clk 0:01:44]}  g5 {[%clk 0:01:17]} 15. Qxg5+ {[%clk 0:01:31]}  Kh8 {[%clk 0:01:17]} 16. g4 {[%clk 0:01:24]}  c4 {[%clk 0:01:01]} 17. Rh2 {[%clk 0:00:46]}  c3 {[%clk 0:00:56]} 18. b3 {[%clk 0:00:46]}  Qb6 {[%clk 0:00:53]} 19. O-O-O {[%clk 0:00:37]}  Rg8 {[%clk 0:00:41]} 20. Qh4 {[%clk 0:00:30]}  Qa5 {[%clk 0:00:38]} 21. Nc4 {[%clk 0:00:27]}  Qxa2 {[%clk 0:00:37]} 0-1


[Site "https://www.chess.com"]